Workbook

Sheet Лист1
C2: ООО БЕЛТЕМА (Завод-производитель - базовый поставщик для Вашего производства - поставим всё!)
C3: Рабочие места сборщиков, инженеров, диспетчеров, радийщиков, сервисников, офисного штата
D4: * цены в прайсе на сайте могут быть не актуальны, требуется уточнение и согласование на день оплаты аванса.
B5: № | C5: Наименование БЕЛТЕМА | D5: на сайте* | E5: сроки | F5: штук | G5: цена/шт | H5: цена всего | I5: с доставкой | J5: и сборкой
B6: 1 | C6: Beltema Стол С5 1200х750 мм | D6: https://beltema.ru/stoly/promyshlennye-stoly-005-serii/product/253/ | E6: со склада (5рд) | F6: 20 | G6: 22,900 ₽ | H6: =F6*G6 -> 458,000 ₽ | I6: =H6*1.2 -> 549,600 ₽ | J6: =I6*1.2 -> 659,520 ₽
B7: =B6+1 -> 2 | C7: Beltema Стол С5 1200х900 мм | D7: https://beltema.ru/stoly/promyshlennye-stoly-005-serii/product/253/ | E7: 15-50 раб дней | F7: 0 | G7: 22,900 ₽ | H7: =F7*G7 -> 0 | I7: =H7*1.2 -> 0 | J7: =I7*1.2 -> 0
B8: =B7+1 -> 3 | C8: Beltema Стол С5 1500х750 мм | D8: https://beltema.ru/stoly/promyshlennye-stoly-005-serii/product/253/ | E8: со склада (5рд) | F8: 20 | G8: 22,900 ₽ | H8: 458,000 ₽ | I8: 549,600 ₽ | J8: =I8*1.2 -> 659,520 ₽
B9: 4 | C9: Beltema Стол С5 1500х900 мм | D9: https://beltema.ru/stoly/promyshlennye-stoly-005-serii/product/253/ | E9: 15-50 раб дней | F9: 0 | G9: 22,900 ₽ | H9: 0 | I9: 0 | J9: =I9*1.2 -> 0
B10: 5 | C10: Beltema Стол С5 1800х750 мм | D10: https://beltema.ru/stoly/promyshlennye-stoly-005-serii/product/253/ | E10: 15-50 раб дней | F10: 2 | G10: 22,200 ₽ | H10: 44,400 ₽ | I10: 53,280 ₽ | J10: =I10*1.2 -> 63,936 ₽
B11: 6 | C11: Beltema Стол С5 1800х900 мм | D11: https://beltema.ru/stoly/promyshlennye-stoly-005-serii/product/253/ | E11: 15-50 раб дней | F11: 0 | G11: 22,900 ₽ | H11: 0 | I11: 0 | J11: =I11*1.2 -> 0
B12: 7 | C12: Beltema Стол С5 1200х750 ESD HPL | D12: https://beltema.ru/stoly/promyshlennye-stoly-005-serii/product/920/ | E12: со склада (5рд) | F12: 0 | G12: 22,480 ₽ | H12: 0 | I12: 0 | J12: =I12*1.2 -> 0
B13: 8 | C13: Beltema Стол С5 1200х900 ESD HPL | D13: https://beltema.ru/stoly/promyshlennye-stoly-005-serii/product/920/ | E13: 15-50 раб дней | F13: 0 | G13: 28,990 ₽ | H13: 0 | I13: 0 | J13: =I13*1.2 -> 0
B14: 9 | C14: Beltema Стол С5 1500х750 ESD HPL | D14: https://beltema.ru/stoly/promyshlennye-stoly-005-serii/product/920/ | E14: со склада (5рд) | F14: 0 | G14: 25,100 ₽ | H14: 0 | I14: 0 | J14: =I14*1.2 -> 0
B15: 10 | C15: Beltema Стол С5 1500х900 ESD HPL | D15: https://beltema.ru/stoly/promyshlennye-stoly-005-serii/product/920/ | E15: 15-50 раб дней | F15: 0 | G15: 30,550 ₽ | H15: 0 | I15: 0 | J15: =I15*1.2 -> 0
B16: 11 | C16: Beltema Стол С5 1800х750 ESD HPL | D16: https://beltema.ru/stoly/promyshlennye-stoly-005-serii/product/920/ | E16: 15-50 раб дней | F16: 0 | G16: 34,990 ₽ | H16: 0 | I16: 0 | J16: =I16*1.2 -> 0
B17: 12 | C17: Beltema Стол С5 1800х900 ESD HPL | D17: https://beltema.ru/stoly/promyshlennye-stoly-005-serii/product/920/ | E17: 15-50 раб дней | F17: 0 | G17: 34,990 ₽ | H17: 0 | I17: 0 | J17: =I17*1.2 -> 0
B18: 13 | C18: Стол диспетчера тройной (спецТЗ) пластикат(ПВД), полки, тумбы, креп.под 3 мон. | E18: 15-50 раб дней | F18: 0 | G18: 398,000 ₽ | H18: =F18*G18 -> 0 | I18: =H18*1.2 -> 0 | J18: =I18*1.2 -> 0
B19: 14 | C19: Верстак (без опций) 1500х600х810 мм П образный (можно и ESD) | D19: https://beltema.ru/verstaki/ | E19: 15-50 раб дней | F19: 0 | G19: 22,650 ₽ | H19: =F19*G19 -> 0 | I19: 0 | J19: =I19*1.2 -> 0
B20: 15 | C20: Верстак полный V6 TD (тумба драйвер в комплекте + можно добавить свет и опции) | D20: https://beltema.ru/verstaki/ | E20: 15-50 раб дней | F20: 20 | G20: 105,500 ₽ | H20: 2,110,000 ₽ | I20: 2,532,000 ₽ | J20: =I20*1.2 -> 3,038,400 ₽
B21: 16 | C21: Стенка задняя СЗ-015 1200х370 мм | D21: https://beltema.ru/opcii-dlya-stolov/opcii-k-stolam-serii-005/product/751/ | E21: 15-50 раб дней | F21: 0 | G21: 3,950 ₽ | H21: 0 | I21: 0 | J21: =I21*1.2 -> 0
B22: 17 | C22: Стенка задняя СЗ-015 1500х370 мм | D22: https://beltema.ru/opcii-dlya-stolov/opcii-k-stolam-serii-005/product/751/ | E22: 15-50 раб дней | F22: 0 | G22: 3,950 ₽ | H22: 0 | I22: 0 | J22: =I22*1.2 -> 0
B23: 18 | C23: Стенка задняя СЗ-015 1800х370 мм | D23: https://beltema.ru/opcii-dlya-stolov/opcii-k-stolam-serii-005/product/751/ | E23: 15-50 раб дней | F23: 0 | G23: 3,950 ₽ | H23: 0 | I23: 0 | J23: =I23*1.2 -> 0
B24: 19 | C24: Рама задняя ЗР-01 (необходимый крепёж) | D24: https://beltema.ru/opcii-dlya-stolov/opcii-k-stolam-serii-005/product/532/ | E24: со склада (5рд) | F24: 22 | G24: 5,900 ₽ | H24: 129,800 ₽ | I24: 155,760 ₽ | J24: =I24*1.2 -> 186,912 ₽
B25: 20 | C25: Панель перфорированная ПП-02 495х350х1 мм | D25: https://beltema.ru/opcii-dlya-stolov/opcii-k-stolam-serii-005/product/445/ | E25: со склада (5рд) | F25: 44 | G25: 990 ₽ | H25: 43,560 ₽ | I25: 52,272 ₽ | J25: =I25*1.2 -> 62,726 ₽
B26: 21 | C26: Фильтр сетевой ФС-02 6 евро с заземлением | D26: https://beltema.ru/opcii-dlya-stolov/elektrobloki/product/424/ | E26: со склада (5рд) | F26: 0 | G26: 4,050 ₽ | H26: =F26*G26 -> 0 | I26: 0 | J26: =I26*1.2 -> 0
B27: 22 | C27: Электроблок SA-2 | D27: https://beltema.ru/opcii-dlya-stolov/elektrobloki/product/412/ | E27: 15-50 раб дней | F27: 0 | G27: 4,900 ₽ | H27: 0 | I27: 0 | J27: =I27*1.2 -> 0
B28: 23 | C28: Электроблок SA-8 | D28: https://beltema.ru/opcii-dlya-stolov/elektrobloki/product/419/ | E28: со склада (5рд) | F28: 22 | G28: 5,900 ₽ | H28: 129,800 ₽ | I28: 155,760 ₽ | J28: =I28*1.2 -> 186,912 ₽
B29: 24 | C29: Набор крючков 10 шт (2по5) | D29: https://beltema.ru/opcii-dlya-stolov/product/536/ | E29: со склада (5рд) | F29: 20 | G29: 1,900 ₽ | H29: 38,000 ₽ | I29: 45,600 ₽ | J29: =I29*1.2 -> 54,720 ₽
B30: 25 | C30: Полка приборная длинная ППД 1200/1500/1800 | D30: https://beltema.ru/search/?search_text=Полка%20приборная%20длинная%20ППД | E30: со склада (5рд) | F30: 12 | G30: 4,990 ₽ | H30: 59,880 ₽ | I30: 71,856 ₽ | J30: =I30*1.2 -> 86,227 ₽
B31: 26 | C31: Полка приборная длинная ППД ESD HPL 1200/1500/1800 | D31: https://beltema.ru/search/?search_text=Полка%20приборная%20длинная%20ППД | E31: 15-50 раб дней | F31: 0 | G31: 6,990 ₽ | H31: 0 | I31: 0 | J31: =I31*1.2 -> 0
B32: 27 | C32: Полка приборная короткая ППК | D32: https://beltema.ru/search/?search_text=Полка%20приборная%20короткая%20ППК | E32: 15-50 раб дней | F32: 0 | G32: 2,990 ₽ | H32: 0 | I32: 0 | J32: =I32*1.2 -> 0
B33: 28 | C33: Полка приборная короткая ППК ESD HPL | D33: https://beltema.ru/search/?search_text=Полка%20приборная%20короткая%20ППК | E33: 15-50 раб дней | F33: 0 | G33: 2,990 ₽ | H33: 0 | I33: 0 | J33: =I33*1.2 -> 0
B34: 29 | C34: Полка нижняя длинная ПНД 1200/1500/1800 мм | D34: https://beltema.ru/opcii-dlya-stolov/opcii-k-stolam-serii-005/product/727/ | E34: 15-50 раб дней | F34: 0 | G34: 4,700 ₽ | H34: 0 | I34: 0 | J34: =I34*1.2 -> 0
B35: 30 | C35: Подставка для ног ПДН-02 430х300 мм | D35: https://beltema.ru/opcii-dlya-stolov/product/539/ | E35: со склада (5рд) | F35: 0 | G35: 4,900 ₽ | H35: 0 | I35: 0 | J35: =I35*1.2 -> 0
B36: 31 | C36: Комплект освещения 5КО-1200 LED, 49 полный режим 4960 Лм, половинный режим - 2480 Лм. | D36: https://beltema.ru/opcii-dlya-stolov/opcii-k-stolam-serii-005/osveshenie-k-stolam-serii-5/product/1271/ | E36: 15-50 раб дней | F36: 22 | G36: 9,900 ₽ | H36: 217,800 ₽ | I36: 261,360 ₽ | J36: =I36*1.2 -> 313,632 ₽
B37: 32 | C37: Светильник под полку 1200 LED 49Вт., ширина 1200 мм | D37: https://beltema.ru/opcii-dlya-stolov/osveshenie-rabochego-mesta/product/969/ | E37: 15-50 раб дней | F37: 22 | G37: 6,505 ₽ | H37: 143,110 ₽ | I37: 171,732 ₽ | J37: =I37*1.2 -> 206,078 ₽
B38: 33 | C38: Лампа бестеневая с увеличительной линзой BELTEMA 7D LED | D38: https://beltema.ru/opcii-dlya-stolov/product/1000/ | E38: со склада (5рд) | F38: 0 | G38: 11,900 ₽ | H38: 0 | I38: 0 | J38: =I38*1.2 -> 0
B39: 34 | C39: Тумба метал. подвесная ПТ3 3 ящ 380*670*360 мм | D39: https://beltema.ru/opcii-dlya-stolov/opcii-k-stolam-serii-005/product/1243/ | E39: 15-50 раб дней | F39: 0 | G39: 11,900 ₽ | H39: 0 | I39: 0 | J39: =I39*1.2 -> 0
B40: 35 | C40: Тумба метал. подвесная ПТ4 4 ящ 380*670*470 мм | D40: https://beltema.ru/opcii-dlya-stolov/opcii-k-stolam-serii-005/product/1243/ | E40: 15-50 раб дней | F40: 22 | G40: 14,900 ₽ | H40: 327,800 ₽ | I40: 393,360 ₽ | J40: =I40*1.2 -> 472,032 ₽
B41: 36 | C41: Тумба подкатная 3 ящика Т.1.1 450х465х600 23кг | D41: https://beltema.ru/tumby/product/487/ | E41: 15-50 раб дней | F41: 0 | G41: 5,990 ₽ | H41: 0 | I41: =H41*1.2 -> 0 | J41: =I41*1.2 -> 0
B42: 37 | C42: Тумба подкат. 3 ящика ЦК3 ESD антистатическая | D42: https://beltema.ru/tumby/product/857/ | E42: 15-50 раб дней | F42: 0 | G42: 26,650 ₽ | H42: 0 | I42: 0 | J42: 0
B43: 38 | C43: Стул диспетчера с опциями Fortuna Chrome | E43: 15-50 раб дней | F43: 40 | G43: 39,000 ₽ | H43: 1,560,000 ₽ | I43: 1,872,000 ₽ | J43: 2,246,400 ₽
B44: 39 | C44: Стул тканевый СТ-113 ESD | D44: https://beltema.ru/stulya/product/521/ | E44: 15-50 раб дней | F44: 0 | G44: 1,900 ₽ | H44: 0 | I44: 0 | J44: 0
B45: 40 | C45: Стул полиуретан СТ-290 ESD c подлок | D45: https://beltema.ru/stulya/product/518/ | E45: 15-50 раб дней | F45: 22 | G45: 29,900 ₽ | H45: 657,800 ₽ | I45: 789,360 ₽ | J45: 947,232 ₽
B46: 41 | C46: Стол-ресепшен GR1-141 1400х 829х 715х 419х 955-985 | E46: 15-50 раб дней | F46: 40 | G46: 39,000 ₽ | H46: 1,560,000 ₽ | I46: 1,872,000 ₽ | J46: 2,246,400 ₽
B47: 42 | C47: Табурет ТБ-30 ESD | D47: https://beltema.ru/stulya/product/522/ | E47: 15-50 раб дней | F47: 5 | G47: 9,900 ₽ | H47: 49,500 ₽ | I47: 59,400 ₽ | J47: 71,280 ₽
B48: 43 | C48: Колёса промышленные 5 шт (долгосрочные) | D48: https://beltema.ru/stulya/opcii-k-antistaticheskim-stulyam-i-taburetam/ | E48: 15-50 раб дней | F48: 22 | G48: 2,900 ₽ | H48: 63,800 ₽ | I48: 76,560 ₽ | J48: 91,872 ₽
B49: 44 | C49: Колёса металлические KА-01 ESD 5 шт | D49: https://beltema.ru/stulya/opcii-k-antistaticheskim-stulyam-i-taburetam/ | E49: 15-50 раб дней | F49: 0 | G49: 4,900 ₽ | H49: 0 | I49: 0 | J49: 0
B50: 45 | C50: Колёса пластиковые КА-03 ESD 5 шт | D50: https://beltema.ru/stulya/opcii-k-antistaticheskim-stulyam-i-taburetam/ | E50: 15-50 раб дней | F50: 0 | G50: 3,900 ₽ | H50: =F50*G50 -> 0 | I50: 0 | J50: =I50*1.2 -> 0
B51: 46 | C51: Колёса пластиковые базовые 5шт | D51: https://beltema.ru/stulya/opcii-k-antistaticheskim-stulyam-i-taburetam/ | E51: 15-50 раб дней | F51: 0 | G51: 2,900 ₽ | H51: 0 | I51: 0 | J51: =I51*1.2 -> 0
B52: 47 | C52: Подлокотники общепром. 2шт | D52: https://beltema.ru/stulya/opcii-k-antistaticheskim-stulyam-i-taburetam/ | E52: 15-50 раб дней | F52: 2 | G52: 2,900 ₽ | H52: 5,800 ₽ | I52: 6,960 ₽ | J52: =I52*1.2 -> 8,352 ₽
B53: 48 | C53: Шкаф для одежды ШДО-01 600х500х1850 мм 60кг с полкой | D53: https://beltema.ru/shkafy-metallicheskie/product/566/ | E53: 15-50 раб дней | F53: 0 | G53: 14,900 ₽ | H53: 0 | I53: 0 | J53: =I53*1.2 -> 0
B54: 49 | C54: Шкаф 32ЯВ 800х480х1980 мм ящики по 315*440*70 | D54: https://beltema.ru/shkafy-metallicheskie/product/630/ | E54: 15-50 раб дней | F54: 0 | G54: 95,700 ₽ | H54: 2 ₽ | I54: 2 ₽ | J54: =I54*1.2 -> 3 ₽
B55: 50 | C55: Шкаф 48ЯВ 1200х480х1980 ящики по 315*440*70 | D55: https://beltema.ru/shkafy-metallicheskie/product/629/ | E55: 15-50 раб дней | F55: 0 | G55: 143,550 ₽ | H55: 0 | I55: 0 | J55: =I55*1.2 -> 0
B56: 51 | C56: Шкаф для комплектующих 30ЯВ ESD 800х500х1860 мм 125кг ящики 314*457*73 мм, нагрузка до 25 кг | D56: https://beltema.ru/shkafy-metallicheskie/product/875/ | E56: 15-50 раб дней | F56: 0 | G56: 98,000 ₽ | H56: 1 ₽ | I56: 1 ₽ | J56: =I56*1.2 -> 1 ₽
B57: 52 | C57: Шкаф инструментальный ШДК-20 1000*500*2000 мм Нагрузка на шкаф до 600 кг на полку до 200 кг | D57: https://beltema.ru/shkafy-metallicheskie/product/1007/ | E57: 15-50 раб дней | F57: 0 | G57: 79,000 ₽ | H57: 0 | I57: 0 | J57: =I57*1.2 -> 0
B58: 53 | C58: Шкаф для комплектующих ШДК-45 850х400х1850 мм 80 кг 245х295х325 мм (15 мест) RAL 7035 | D58: https://beltema.ru/shkafy-metallicheskie/product/564/ | E58: 15-50 раб дней | F58: 0 | G58: 119,000 ₽ | H58: 0 | I58: 0 | J58: =I58*1.2 -> 0
B59: 54 | C59: АРХИВ Шкаф для документов ШДК-01 850х400х1850 мм 60 кг 4 полки 5 отсеков | D59: https://beltema.ru/shkafy-metallicheskie/product/565/ | E59: 15-50 раб дней | F59: 0 | G59: 18,900 ₽ | H59: 1 ₽ | I59: 1 ₽ | J59: =I59*1.2 -> 1 ₽
B60: 55 | C60: Шкаф для горучих жид. ЛВЖ (под запрос) | D60: https://beltema.ru/search/?search_text=шкаф | E60: 15-50 раб дней | F60: 0 | G60: 100,000 ₽ | H60: 0 | I60: 0 | J60: =I60*1.2 -> 0
B61: 56 | C61: Шкаф сухого хранения (под запрос) | D61: https://beltema.ru/search/?search_text=шкаф | E61: 15-50 раб дней | F61: 0 | G61: 300,000 ₽ | H61: 0 | I61: 0 | J61: =I61*1.2 -> 0
B62: 57 | C62: Шкафы напольные электротехнические и телекоммуникационные BELTEMA (аналоги Rittal TS8) | D62: https://beltema.ru/shkafy-elektrotehnicheskie-i-telekommunikacionnye/product/1587/ | E62: 30-90 раб дней | F62: 0 | G62: 300,000 ₽ | H62: =F62*G62 -> 0 | I62: 0 | J62: =I62*1.2 -> 0
B63: 58 | C63: Паял станция Quick-203H ESD | D63: https://beltema.ru/payalnii-stancii/product/1612/ | E63: 30-90 раб дней | F63: 0 | G63: 19,900 ₽ | H63: =F63*G63 -> 0 | I63: =H63*1.2 -> 0 | J63: =I63*1.2 -> 0
B64: 59 | C64: Паял станция Quick 712 2канал. ESD | D64: https://beltema.ru/payalnii-stancii/product/1610/ | E64: 30-90 раб дней | F64: 10 | G64: 39,900 ₽ | H64: 399,000 ₽ | I64: 478,800 ₽ | J64: =I64*1 -> 478,800 ₽
B65: 60 | C65: Паял станция Quick 713 3канал. ESD | D65: https://beltema.ru/payalnii-stancii/product/1611/ | E65: 30-90 раб дней | F65: 2 | G65: 119,800 ₽ | H65: 239,600 ₽ | I65: 287,520 ₽ | J65: =I65*1 -> 287,520 ₽
B66: 61 | C66: ДУ BELTEMA-6101A1 + 2 ВУ-3 + 2рукава | D66: https://beltema.ru/dymouloviteli/ | E66: 30-90 раб дней | F66: 2 | G66: 85,000 ₽ | H66: 170,000 ₽ | I66: 204,000 ₽ | J66: 244,800 ₽
B67: 62 | C67: Халат бел. М/Ж 46-56 размеры ESD | F67: 0 | G67: 300,006 ₽ | H67: 0 | I67: 0 | J67: 0
B68: 63 | C68: Перчатки ПА-02 ESD (10шт) c полиуретаном | D68: https://beltema.ru/antistaticheskoe-osnashenie/odezhda-i-obuv/product/935/ | E68: 3900 | H68: =F68*G68 -> 0 | I68: 0 | J68: =I68*1.2 -> 0
C70: ИТОГО (с НДС 20%) | H70: =SUM(H6:H67) -> 8,865,654 ₽ | I70: =H70*1.2 -> 10,638,785 ₽ | J70: =I70*1.2 -> 12,766,542 ₽
I71: =H70-I70 -> -1,773,131 ₽ | J71: =I70-J70 -> -2,127,757 ₽
C72: Поставка до Вашего адреса: прошу написать точный адрес с индексом и контакты получателя
C73: Предоплата : 100% (полный расчёт), основание - счёт-оферта / счёт-договор
C74: Срок : 5-50 раб дней с дня 100% оплаты счёта-оферты / счёта-договора
C75: Просьба в любом случае написать и позвонить - дать обратную связь. Нам это Важно!
C76: С уважением, исполнитель : | D76: 117@beltema.ru
C77: Филиппов Сергей Сергеевич менеджер продаж и новых проектов сбыта tg wa mob. +79024001900 +73432362222 117@beltema.ru; | D77: wa.me/79024001900 | G77: Т +73432362222 M +79024001900
C79: ООО "БЕЛТЕМА" завод-производитель: производственная мебель, антистатическое оснащение, паяльное оборудование
